bitfinex-derivatives/quotes_SOLF0:USTF0_20250818
["timestamp","ask_amount","ask_price","bid_price","bid_amount"]
[1755541440956,4.10126625,183.8,183.73,6.75701222]
[1755541441170,2.91,183.82,183.73,6.75701222]
[1755541441461,4.10347529,183.81,183.73,6.75701222]
[1755541441662,4.10347529,183.8,183.73,6.75701222]
[1755541441968,2.91,183.82,183.73,6.75701222]
[1755541442172,4.10266219,183.81,183.73,6.75701222]
[1755541442367,4.10266219,183.8,183.73,6.75701222]
[1755541442568,2.91,183.82,183.73,6.75701222]
[1755541442764,4.10330961,183.81,183.73,6.75701222]
[1755541442966,4.10330961,183.8,183.73,6.75701222]
[1755541443163,2.91,183.82,183.73,6.75701222]
[1755541443370,4.10275767,183.81,183.73,6.75701222]
[1755541443567,2.91,183.82,183.73,6.75701222]
[1755541443568,4.10275767,183.8,183.73,6.75701222]
[1755541443766,2.91,183.82,183.73,6.75701222]
[1755541443975,4.10263968,183.81,183.73,6.75701222]
[1755541444273,4.10263968,183.8,183.73,6.75701222]
[1755541444473,4.10263968,183.79,183.73,6.75701222]
[1755541444675,2.91,183.82,183.73,6.75701222]
[1755541444874,4.10292849,183.81,183.73,6.75701222]
[1755541445070,4.10292849,183.8,183.73,6.75701222]
[1755541445275,4.10292849,183.79,183.73,6.75701222]
[1755541445572,2.91,183.82,183.73,6.75701222]
[1755541445779,4.10270914,183.81,183.73,6.75701222]
[1755541446068,4.10270914,183.8,183.73,6.75701222]
[1755541446273,4.10270914,183.79,183.73,6.75701222]
[1755541446477,52.91,183.82,183.73,6.75701222]
[1755541446670,4.10499163,183.81,183.73,6.75701222]
[1755541446871,4.10499163,183.8,183.73,6.75701222]
[1755541447071,4.10499163,183.79,183.73,2.94]
[1755541447275,52.91,183.82,183.75,2.94]
[1755541447476,4.1073856,183.81,183.75,2.94]
[1755541447674,4.1073856,183.8,183.75,2.94]
[1755541447876,4.1073856,183.79,183.75,2.94]
[1755541448071,2.91,183.8,183.75,2.94]
[1755541448378,4.10727851,183.79,183.75,2.94]
[1755541448571,4.10727851,183.78,183.75,2.94]
[1755541448773,2.91,183.8,183.75,2.94]
[1755541448974,4.10800006,183.79,183.75,2.94]
[1755541449279,4.10800006,183.78,183.75,2.94]
[1755541449469,2.91,183.8,183.75,2.94]
[1755541449673,4.11074967,183.79,183.75,2.94]
[1755541449874,4.11074967,183.78,183.75,2.94]
[1755541450077,2.91,183.8,183.75,2.94]
[1755541450275,4.11068868,183.79,183.75,2.94]
[1755541450476,4.11068868,183.78,183.75,2.94]
[1755541450678,2.91,183.8,183.75,2.94]
[1755541450880,2.91,183.78,183.74,3.81701222]
[1755541451470,4.11050025,183.77,183.74,3.81701222]
[1755541451677,2.91,183.78,183.74,6.75701222]
[1755541451976,4.11050882,183.77,183.71,3.81701222]
[1755541452176,2.91,183.75,183.68,6.75701222]
[1755541452376,4.11014032,183.74,183.68,6.75701222]
[1755541452678,2.91,183.75,183.68,6.75701222]
[1755541452679,4.11226809,183.73,183.68,6.75701222]
[1755541452876,2.91,183.75,183.69,2.94]
[1755541453076,2.91,183.73,183.66,3.81701222]
[1755541453277,4.11162127,183.72,183.66,3.81701222]
[1755541453475,7.02162127,183.71,183.66,6.75701222]
[1755541453680,4.11162127,183.7,183.67,2.94]
[1755541453881,2.91,183.71,183.67,2.94]
[1755541454183,4.11350712,183.7,183.67,2.94]
[1755541454481,2.91,183.76,183.66,6.75701222]
[1755541454686,2.91,183.74,183.66,6.75701222]
[1755541454981,4.11619545,183.73,183.66,6.75701222]
[1755541455278,4.11619545,183.72,183.66,6.75701222]
[1755541455477,4.11619545,183.71,183.67,2.94]
[1755541455672,4.11619545,183.7,183.67,2.94]
[1755541455876,2.91,183.74,183.67,2.94]
[1755541456078,4.11481127,183.73,183.67,2.94]
[1755541456278,7.02481127,183.72,183.67,2.94]
[1755541456479,7.02481127,183.71,183.67,2.94]
[1755541456777,4.11481127,183.7,183.67,2.94]
[1755541457374,4.11481127,183.7,183.69,2.94]
[1755541457575,2.91,183.76,183.69,2.94]
[1755541457774,4.11320994,183.75,183.69,2.94]
[1755541457979,4.11320994,183.74,183.66,3.81701222]
[1755541458180,2.91,183.76,183.69,3.81701222]
[1755541458492,4.11505953,183.75,183.69,3.81701222]
[1755541458690,4.11505953,183.74,183.7,2.94]
[1755541458883,2.91,183.79,183.72,3.81701222]
[1755541459077,4.11465839,183.78,183.69,3.81701222]
[1755541459377,2.91,183.76,183.67,6.75701222]
[1755541459583,4.11465839,183.75,183.67,6.75701222]
[1755541459881,4.11465839,183.74,183.67,6.75701222]
[1755541460081,4.11465839,183.73,183.67,6.75701222]
[1755541460379,2.91,183.79,183.7,6.75701222]
[1755541460584,4.11589812,183.78,183.7,6.75701222]
[1755541460787,4.11589812,183.77,183.7,6.75701222]
[1755541461089,2.91,183.79,183.73,3.81701222]
[1755541461290,4.11516973,183.78,183.73,3.81701222]
[1755541461491,2.91,183.79,183.74,2.94]
[1755541461785,4.11535234,183.78,183.74,2.94]
[1755541462091,2.91,183.79,183.74,2.91]
[1755541462283,4.11473138,183.78,183.74,2.91]
[1755541462485,2.91,183.79,183.74,2.91]
[1755541462685,4.1148195,183.78,183.71,2.91]
[1755541462889,4.1148195,183.77,183.7,3.81701222]
[1755541463089,4.1148195,183.76,183.7,6.72701222]
[1755541463285,2.91,183.8,183.7,6.72701222]
[1755541463489,4.11301843,183.79,183.7,6.72701222]
[1755541463689,4.11301843,183.78,183.7,6.72701222]
[1755541463993,2.91,183.8,183.75,2.91]
[1755541464291,7.02385172,183.79,183.75,6.72701222]
[1755541464484,50.0,183.83,183.73,3.81701222]
[1755541464690,2.91,183.77,183.73,3.81701222]
[1755541464988,2.91,183.82,183.73,12.16711222]
[1755541465191,4.11507507,183.81,183.73,6.72701222]
[1755541465391,4.11507507,183.8,183.73,6.72701222]
[1755541465591,4.11507507,183.79,183.73,12.16711222]
[1755541465782,2.91,183.82,183.73,12.16711222]
[1755541466088,4.11640626,183.81,183.73,6.72701222]
[1755541466391,4.11640626,183.8,183.73,6.72701222]
[1755541466593,4.11640626,183.79,183.73,6.72701222]
[1755541466779,2.91,183.82,183.73,6.72701222]
[1755541466980,4.11533171,183.81,183.74,5.4399]
[1755541467190,4.11533171,183.8,183.74,5.4399]
[1755541467390,4.11533171,183.79,183.75,2.91]
[1755541467589,2.91,183.82,183.76,2.91]
[1755541467791,7.02649597,183.81,183.76,2.91]
[1755541467988,4.11649597,183.8,183.76,2.91]
[1755541468387,4.11649597,183.79,183.76,2.91]
[1755541468691,2.91,183.81,183.76,2.91]
[1755541468888,4.11997161,183.8,183.76,2.91]
[1755541469196,4.11997161,183.79,183.76,2.91]
[1755541469390,4.12148996,183.78,183.76,2.91]
[1755541469593,2.91,183.82,183.76,2.91]
[1755541469890,2.91,183.82,183.73,12.16721222]
[1755541469891,4.12230672,183.81,183.73,12.16721222]
[1755541470089,4.12230672,183.8,183.74,5.4399]
[1755541470291,4.12230672,183.79,183.75,2.91]
[1755541470489,7.03230672,183.78,183.73,3.81701222]
[1755541470789,2.91,183.78,183.74,2.91]
[1755541471095,7.03298113,183.77,183.7,6.72701222]
[1755541471296,4.12298113,183.76,183.7,6.72701222]
[1755541471497,2.91,183.77,183.7,6.72701222]
[1755541471700,4.12240436,183.76,183.7,6.72701222]
[1755541471892,4.12240436,183.75,183.7,6.72701222]
[1755541472090,2.91,183.74,183.7,6.72701222]
[1755541472593,2.91,183.79,183.7,3.81701222]
[1755541472890,4.12205519,183.78,183.7,9.25811222]
[1755541473091,4.12205519,183.77,183.7,9.25811222]
[1755541473292,7.03205519,183.76,183.7,3.81701222]
[1755541473491,4.12205519,183.75,183.7,3.81701222]
[1755541473697,2.91,183.75,183.7,6.72701222]
[1755541475700,4.12230989,183.74,183.7,6.72701222]
[1755541475904,2.91,183.75,183.7,6.72701222]
[1755541476099,4.12221119,183.74,183.71,2.91]
[1755541476292,2.91,183.75,183.71,2.91]
[1755541476602,4.12222224,183.74,183.71,2.91]
[1755541476790,2.91,183.75,183.71,2.91]
[1755541476992,4.12052307,183.74,183.71,2.91]
[1755541477201,2.91,183.75,183.71,2.91]
[1755541477402,4.11991416,183.74,183.71,2.91]
[1755541477589,4.11999522,183.73,183.69,3.81701222]
[1755541477792,4.11985009,183.72,183.69,3.81701222]
[1755541477993,2.91,183.73,183.69,3.81701222]
[1755541478196,4.11984739,183.72,183.69,3.81701222]
[1755541478398,2.91,183.73,183.69,3.81701222]
[1755541478598,4.11817753,183.72,183.69,3.81701222]
[1755541478801,2.91,183.73,183.69,3.81701222]
[1755541479102,4.1181636,183.72,183.69,3.81701222]
[1755541479295,2.91,183.73,183.69,3.81701222]
[1755541479501,4.11795677,183.72,183.69,3.81701222]
[1755541479804,2.91,183.73,183.69,3.81701222]
[1755541480004,4.11792044,183.72,183.69,6.72701222]
[1755541480200,2.91,183.73,183.69,2.91]
[1755541480406,4.11744869,183.72,183.69,2.91]
[1755541480703,2.91,183.73,183.69,2.91]
[1755541481001,4.1176383,183.72,183.69,2.91]
[1755541481204,2.91,183.73,183.7,2.91]
[1755541481405,2.91,183.73,183.68,3.81701222]
[1755541481406,4.11760365,183.72,183.68,3.81701222]
[1755541481598,4.11749364,183.71,183.66,2.91]
[1755541481906,19.29,183.75,183.66,2.91]
[1755541481907,7.02749364,183.7,183.66,2.91]
[1755541482107,2.91,183.7,183.66,2.91]
[1755541483905,2.91,183.7,183.67,2.91]
[1755541486600,52.91,183.74,183.68,2.91]
[1755541486801,4.11725583,183.73,183.69,2.91]
[1755541487014,4.11725583,183.72,183.69,2.91]
[1755541487315,50.0,183.74,183.66,5.4422]
[1755541487316,7.02725583,183.71,183.66,5.4422]
[1755541487609,2.91,183.71,183.67,2.91]
[1755541491808,4.11996996,183.7,183.67,2.91]
[1755541492014,2.91,183.71,183.67,2.91]
[1755541492212,4.11979355,183.7,183.67,2.91]
[1755541492414,2.91,183.71,183.67,2.91]
[1755541492614,4.11821878,183.7,183.67,2.91]
[1755541492910,2.91,183.71,183.67,2.91]
[1755541493213,4.11845512,183.7,183.67,2.91]
[1755541493402,2.91,183.71,183.67,2.91]
[1755541493598,4.1183164,183.7,183.67,2.91]
[1755541493812,2.91,183.71,183.67,2.91]
[1755541494004,4.11911197,183.7,183.67,2.91]
[1755541494316,2.91,183.71,183.68,3.1]
[1755541494508,4.12020982,183.7,183.68,3.1]
[1755541494713,2.91,183.71,183.68,3.1]
[1755541494914,4.119266,183.7,183.65,3.81701222]
[1755541495109,2.91,183.72,183.65,6.91701222]
[1755541495309,4.11890252,183.71,183.65,6.91701222]
[1755541495510,4.11890252,183.7,183.67,3.1]
[1755541495810,2.91,183.71,183.67,3.1]
[1755541496016,4.11955057,183.7,183.67,3.1]
[1755541496213,2.91,183.71,183.67,3.1]
[1755541496513,7.02980456,183.7,183.67,3.1]
[1755541496715,7.02947335,183.69,183.63,3.1]
[1755541496915,4.11947335,183.68,183.63,3.1]
[1755541497217,2.91,183.66,183.63,3.1]
[1755541498217,2.91,183.66,183.62,3.81701222]
[1755541498408,66.38,183.71,183.62,6.91701222]
[1755541498602,2.91,183.65,183.62,6.91701222]
[1755541499419,2.91,183.7,183.62,6.91701222]
[1755541499615,4.11647696,183.69,183.65,3.81701222]
[1755541499816,2.91,183.69,183.65,3.1]
[1755541500317,2.91,183.74,183.65,3.1]
[1755541500517,4.11726176,183.73,183.65,3.1]
[1755541500720,66.38,183.75,183.65,3.1]
[1755541500721,2.91,183.71,183.65,3.1]
[1755541500919,7.02726176,183.7,183.66,3.1]
[1755541501121,4.11726176,183.69,183.66,3.1]
[1755541501917,2.91,183.7,183.66,3.1]
[1755541502324,2.91,183.68,183.6,3.1]
[1755541502510,4.1168437,183.67,183.6,6.91701222]
[1755541502716,2.91,183.68,183.6,6.91701222]
[1755541503017,4.11619773,183.67,183.6,6.91701222]
[1755541503213,2.91,183.68,183.6,6.91701222]
[1755541503416,2.91,183.73,183.64,3.1]
[1755541503617,54.11758447,183.72,183.64,3.1]
[1755541503815,7.02758447,183.71,183.64,3.1]
[1755541504122,4.11758447,183.7,183.64,3.1]
[1755541504323,4.11758447,183.69,183.65,3.1]
[1755541504511,2.91,183.71,183.64,3.1]
[1755541504821,4.11920869,183.7,183.64,3.1]
[1755541505018,2.91,183.71,183.64,8.5429]
[1755541505217,2.91,183.71,183.64,3.1]
[1755541505218,4.12001805,183.7,183.64,3.1]
[1755541505518,2.91,183.67,183.61,3.1]
[1755541507516,0.035608,183.66,183.62,0.04064253]
[1755541507716,2.91,183.63,183.62,0.04064253]
[1755541508022,2.91,183.63,183.57,6.91701222]
[1755541519024,2.91,183.63,183.57,3.1]
[1755541524830,50.0,183.65,183.57,3.1]
[1755541525139,4.10975314,183.64,183.57,3.1]
[1755541525436,4.10975314,183.63,183.57,3.1]
[1755541525628,50.0,183.65,183.57,3.1]
[1755541525823,7.02865269,183.64,183.57,3.1]
[1755541526034,4.10865269,183.63,183.57,3.1]
[1755541526231,2.92,183.64,183.57,3.1]
[1755541526431,4.10878424,183.63,183.57,3.1]
[1755541526634,50.0,183.65,183.62,3.81701222]
[1755541526833,2.92,183.71,183.64,5.4429]
[1755541527033,4.11066683,183.7,183.67,3.0]
[1755541527244,52.92,183.75,183.67,3.0]
[1755541527433,2.92,183.73,183.66,3.81701222]
[1755541527632,2.92,183.7,183.61,3.0]
[1755541527935,2.92,183.68,183.61,3.0]
[1755541528139,2.92,183.68,183.63,3.81701222]
[1755541528327,50.0,183.71,183.63,3.81701222]
[1755541528328,50.0,183.71,183.64,3.0]
[1755541528528,4.09744368,183.7,183.64,3.0]
[1755541528741,4.09765457,183.69,183.65,3.0]
[1755541528940,2.91,183.72,183.64,3.0]
[1755541529140,4.0974641,183.71,183.64,6.81701222]
[1755541529439,4.0974641,183.7,183.64,6.81701222]
[1755541529735,2.91,183.72,183.64,6.81701222]
[1755541529931,4.09747814,183.71,183.64,6.81701222]
[1755541530137,4.09747814,183.7,183.64,6.81701222]
[1755541530342,4.09830423,183.69,183.64,3.81701222]
[1755541530533,2.91,183.72,183.65,3.0]
[1755541530732,2.91,183.7,183.61,6.81701222]
[1755541530935,4.09810753,183.69,183.61,6.81701222]
[1755541531135,4.09810753,183.68,183.61,6.81701222]
[1755541531339,7.00810753,183.67,183.61,6.81701222]
[1755541531536,50.0,183.71,183.64,3.81701222]
[1755541531537,52.91,183.71,183.64,3.81701222]
[1755541531743,4.09685227,183.7,183.64,6.81701222]
[1755541531934,52.91,183.71,183.65,3.0]
[1755541532141,2.91,183.69,183.65,3.0]
[1755541532840,50.0,183.71,183.66,3.0]
[1755541533048,7.00745225,183.7,183.66,3.0]
[1755541533343,4.09745225,183.69,183.66,3.0]
[1755541533540,4.09745225,183.69,183.67,3.0]
[1755541533738,50.0,183.71,183.65,3.0]
[1755541533939,4.09750123,183.7,183.66,3.0]
[1755541534139,50.0,183.71,183.64,3.81701222]
[1755541534140,50.0,183.71,183.65,5.4425]
[1755541534342,4.09731726,183.7,183.68,3.0]
[1755541534551,50.0,183.71,183.68,3.0]
[1755541534851,4.09712485,183.7,183.68,3.0]
[1755541535041,50.0,183.71,183.68,3.0]
[1755541535240,4.09702399,183.7,183.68,3.0]
[1755541535440,50.0,183.71,183.64,3.81701222]
[1755541535643,7.00715672,183.7,183.61,3.81701222]
[1755541535946,7.00715672,183.69,183.61,3.81701222]
[1755541536253,4.09715672,183.68,183.62,3.0]
[1755541536453,4.09715672,183.67,183.61,3.81701222]
[1755541536745,50.0,183.7,183.64,3.0]
[1755541536954,4.09770032,183.69,183.64,3.0]
[1755541537143,4.09770032,183.68,183.62,5.4435]
[1755541537349,4.09770032,183.67,183.64,3.0]
[1755541537549,2.91,183.69,183.65,3.0]
[1755541537752,4.09929364,183.68,183.65,3.0]
[1755541538053,4.09929364,183.67,183.65,3.0]
[1755541538353,2.91,183.69,183.65,3.0]
[1755541538651,4.09997191,183.68,183.65,3.0]
[1755541538853,2.91,183.69,183.65,3.0]
[1755541539045,4.10000863,183.68,183.65,3.0]
[1755541539243,2.91,183.68,183.62,3.0]
[1755541539945,2.91,183.68,183.62,8.4435]
[1755541540451,4.10081734,183.67,183.62,3.0]
[1755541540752,2.91,183.69,183.62,3.0]
[1755541540954,4.09996228,183.68,183.62,3.0]
[1755541541253,2.91,183.66,183.62,3.0]
[1755541541848,2.91,183.64,183.55,3.0]
[1755541542040,4.0997332,183.63,183.55,3.0]
[1755541542242,4.0997332,183.62,183.55,3.0]
[1755541542447,7.0097332,183.61,183.55,3.0]
[1755541542654,2.91,183.59,183.52,5.4463]
[1755541543761,2.91,183.59,183.51,12.26371222]
[1755541544862,4.09698502,183.58,183.51,6.81701222]
[1755541545059,2.91,183.59,183.51,6.81701222]
[1755541545260,4.09624617,183.58,183.51,6.81701222]
[1755541545463,2.91,183.59,183.51,6.81701222]
[1755541545651,4.0966621,183.58,183.51,6.81701222]
[1755541545855,2.91,183.59,183.51,6.81701222]
[1755541546760,4.09435904,183.58,183.51,6.81701222]
[1755541546960,2.91,183.59,183.51,3.81701222]
[1755541547163,2.91,183.59,183.5,5.4468]
[1755541547863,2.91,183.59,183.49,82.48066085]
[1755541548058,2.91,183.57,183.49,82.48066085]
[1755541549870,2.91,183.55,183.48,3.0]
[1755541552766,2.91,183.55,183.48,6.81701222]
[1755541552969,2.92,183.59,183.49,3.16]
[1755541553363,2.92,183.59,183.53,5.4461]
[1755541553566,2.92,183.62,183.52,3.16]
[1755541553764,4.08713846,183.61,183.52,3.16]
[1755541554064,7.00713846,183.6,183.52,3.16]
[1755541554263,4.08713846,183.59,183.52,3.16]
[1755541554866,4.08713846,183.59,183.52,8.6064]
[1755541555270,4.08713846,183.59,183.52,3.16]
[1755541555866,4.08713846,183.59,183.53,5.4461]
[1755541556067,2.92,183.6,183.53,5.4461]
[1755541558380,2.92,183.6,183.52,3.16]
[1755541559079,2.92,183.6,183.48,6.97701222]
[1755541559080,2.92,183.58,183.48,6.97701222]
[1755541559281,4.08233025,183.57,183.48,6.97701222]
[1755541559579,2.92,183.58,183.49,3.16]
[1755541560172,2.92,183.58,183.49,8.6073]
[1755541560575,50.0,183.59,183.52,3.16]
[1755541560776,2.92,183.61,183.52,3.16]
[1755541560975,2.92,183.61,183.55,3.16]
[1755541561171,50.0,183.64,183.57,6.97701222]
[1755541561376,2.92,183.62,183.58,3.16]
[1755541561881,2.92,183.61,183.57,6.97701222]
[1755541563282,365.9,183.65,183.58,3.16]
[1755541563589,7.00711239,183.64,183.58,3.16]
[1755541563780,2.92,183.7,183.6,3.81701222]
[1755541564083,2.92,183.67,183.58,3.16]
[1755541564286,2.92,183.65,183.58,3.16]
[1755541564674,4.08726562,183.64,183.54,6.97701222]
[1755541564980,7.00726562,183.63,183.54,6.97701222]
[1755541565187,7.00726562,183.62,183.54,3.16]
[1755541565379,2.92,183.62,183.54,3.16]
[1755541565580,4.08661752,183.61,183.54,3.16]
[1755541565783,4.08596026,183.6,183.54,3.16]
[1755541566087,2.92,183.62,183.54,3.16]
[1755541566389,4.08467334,183.61,183.54,3.16]
[1755541566685,4.08467334,183.6,183.54,3.16]
[1755541566873,2.92,183.62,183.54,3.16]
[1755541567077,4.08631601,183.61,183.54,3.16]
[1755541567282,4.08631601,183.6,183.54,3.16]
[1755541567485,2.92,183.62,183.54,3.16]
[1755541567686,4.08607641,183.61,183.54,3.16]
[1755541567885,2.92,183.59,183.51,6.97701222]
[1755541569680,2.92,183.59,183.51,3.81701222]
[1755541569876,2.92,183.62,183.52,3.16]
[1755541570076,4.08617594,183.61,183.52,3.16]
[1755541570277,4.08617594,183.6,183.52,8.6063]
[1755541570477,2.92,183.62,183.52,3.16]
[1755541570792,2.92,183.62,183.51,3.81701222]
[1755541570793,4.08594636,183.61,183.53,3.16]
[1755541570979,4.08594636,183.6,183.53,8.6061]
[1755541571180,2.92,183.62,183.53,8.6061]
[1755541571484,4.08572854,183.61,183.53,8.6061]
[1755541571683,4.08572854,183.6,183.53,8.6061]
[1755541571876,2.92,183.62,183.55,3.16]
[1755541572076,19.27,183.65,183.55,3.16]
[1755541572279,4.08730269,183.64,183.55,3.16]
[1755541572486,4.08730269,183.63,183.55,3.16]
[1755541572683,4.08730269,183.62,183.55,8.6056]
[1755541572887,69.27,183.65,183.55,8.6056]
[1755541573087,4.08798173,183.64,183.55,8.6056]
[1755541573385,4.08798173,183.63,183.55,8.6056]
[1755541573587,4.08798173,183.62,183.55,3.16]
[1755541573788,2.92,183.63,183.55,3.16]
[1755541573985,4.08801217,183.62,183.55,3.16]
[1755541574190,2.92,183.63,183.55,3.16]
[1755541574488,4.08973458,183.62,183.55,3.16]
[1755541574686,2.92,183.63,183.55,3.16]
[1755541574984,2.92,183.61,183.52,3.16]
[1755541576380,2.92,183.61,183.52,8.6065]
[1755541577591,4.09293944,183.6,183.52,3.16]
[1755541577789,2.92,183.58,183.48,3.16]
[1755541578091,4.09277503,183.57,183.48,3.16]
[1755541578292,4.09277503,183.57,183.48,8.6075]
[1755541579692,4.09277503,183.57,183.48,3.16]
[1755541580292,50.0,183.59,183.53,3.81701222]
[1755541580600,2.92,183.61,183.54,3.16]
[1755541580899,4.09511697,183.6,183.54,3.16]
[1755541581100,4.09511697,183.59,183.53,6.97701222]
[1755541581394,2.92,183.61,183.53,6.97701222]
[1755541581596,4.09609285,183.6,183.53,6.97701222]
[1755541581790,4.09609285,183.59,183.53,6.97701222]
[1755541581991,2.92,183.61,183.53,6.97701222]
[1755541582295,4.09732408,183.6,183.53,6.97701222]
[1755541582492,4.09732408,183.59,183.53,3.81701222]
[1755541582698,50.0,183.63,183.57,3.06]
[1755541582896,4.09758902,183.62,183.58,3.06]
[1755541583200,4.09758902,183.61,183.57,3.06]
[1755541583390,4.09758902,183.6,183.58,3.06]
[1755541583586,50.0,183.63,183.58,3.06]
[1755541583793,6.9579176,183.62,183.58,3.06]
[1755541583992,4.0979176,183.61,183.58,3.06]
[1755541584192,4.0979176,183.6,183.58,3.06]
[1755541584497,4.0979176,183.59,183.58,3.06]
[1755541584894,4.0979176,183.61,183.58,3.06]
[1755541585096,4.0979176,183.6,183.58,3.06]
[1755541585397,2.86,183.62,183.58,3.06]
[1755541585398,4.0979176,183.59,183.58,3.06]
[1755541585601,4.0979176,183.61,183.58,3.06]
[1755541585798,4.0979176,183.6,183.58,3.06]
[1755541585999,4.0979176,183.59,183.58,3.06]
[1755541586701,2.86,183.65,183.58,3.06]
[1755541586997,4.10567029,183.64,183.62,3.06]
[1755541587203,4.10567029,183.63,183.62,3.06]
[1755541587597,4.10567029,183.68,183.62,3.06]
[1755541587797,4.10594818,183.67,183.63,3.06]
[1755541588001,4.10594818,183.66,183.63,3.06]
[1755541588201,4.10594818,183.65,183.63,3.06]
[1755541588399,4.10594818,183.64,183.63,3.06]
[1755541589301,368.82,183.69,183.63,3.06]
[1755541589501,4.10281215,183.68,183.63,3.06]
[1755541589802,6.96281215,183.67,183.63,3.06]
[1755541590001,4.10281215,183.66,183.63,3.06]
[1755541590202,4.10281215,183.65,183.63,3.06]
[1755541590408,6.07408837,183.72,183.63,3.06]
[1755541590701,4.10210929,183.71,183.65,3.81701222]
[1755541590906,4.10210929,183.7,183.68,3.06]
[1755541591210,2.86,183.72,183.68,3.06]
[1755541591392,4.0995923,183.71,183.66,5.4421]
[1755541591602,6.9595923,183.7,183.66,3.06]
[1755541591906,6.9595923,183.69,183.65,3.81701222]
[1755541592206,2.86,183.69,183.65,6.87701222]
[1755541593705,145.41110059,183.76,183.66,3.06]
[1755541593706,2.86,183.72,183.66,3.06]
[1755541594007,6.95539723,183.71,183.66,3.06]
[1755541594213,4.09539723,183.7,183.66,3.06]
[1755541594897,6.95539723,183.7,183.66,3.06]
[1755541595099,2.86,183.72,183.67,3.06]
[1755541595300,6.95289674,183.71,183.67,3.06]
[1755541595496,2.86,183.71,183.67,3.06]
[1755541595696,2.86,183.75,183.66,3.06]
[1755541595893,4.09288721,183.74,183.66,3.06]
[1755541596104,4.09288721,183.73,183.66,3.06]
[1755541596306,4.09288721,183.72,183.68,3.06]
[1755541596494,4.09288721,183.71,183.68,3.06]
[1755541596694,50.0,183.75,183.66,3.06]
[1755541596901,4.09224854,183.74,183.68,3.81701222]
[1755541597099,50.0,183.75,183.68,6.87701222]
[1755541597299,4.09178753,183.74,183.68,6.87701222]
[1755541597500,50.0,183.75,183.68,6.87701222]
[1755541597698,4.09197112,183.74,183.68,6.87701222]
[1755541597899,50.0,183.75,183.68,6.87701222]
[1755541598194,4.09189245,183.74,183.68,6.87701222]
[1755541598399,138.38,183.76,183.68,6.87701222]
[1755541598706,4.09021729,183.75,183.7,5.4411]
[1755541598904,2.86,183.75,183.69,3.06]
[1755541600302,2.86,183.75,183.67,3.81701222]
[1755541600501,4.08836628,183.74,183.67,3.81701222]
[1755541600702,2.86,183.75,183.67,3.81701222]
[1755541600902,2.86,183.75,183.67,6.87701222]
[1755541601102,2.86,183.75,183.68,5.4417]
[1755541601500,2.86,183.75,183.68,3.06]
[1755541601904,2.86,183.75,183.69,5.4413]
[1755541602209,135.52,183.76,183.7,6.87701222]
[1755541603309,135.52,183.76,183.72,3.06]
[1755541604302,2.86,183.78,183.72,3.06]
[1755541604504,4.08113324,183.77,183.73,3.06]
[1755541604704,2.86,183.78,183.74,3.06]
[1755541605402,365.92,183.79,183.7,3.81701222]
[1755541605403,2.86,183.77,183.7,6.87701222]
[1755541605710,2.86,183.77,183.7,12.31801222]
[1755541605912,2.86,183.77,183.7,6.87701222]
[1755541606308,2.86,183.77,183.7,12.31811222]
[1755541607209,2.86,183.77,183.71,5.4408]
[1755541608108,2.86,183.77,183.7,12.31801222]
[1755541609010,2.86,183.77,183.7,6.87701222]
[1755541609406,188.28,183.8,183.71,3.06]
[1755541609713,188.28,183.8,183.74,3.06]